[Event "FIDE U16 Olympiad_boards_1-80"]
[Site "Eindhoven, Netherlands"]
[Date "2023.08.13"]
[Round "1.63"]
[White "Harsh, Suresh"]
[Black "Ajiri, Nygaard"]
[Result "1-0"]
[TimeControl "2700+10"]
[WhiteElo "2158"]
[BlackElo "1591"]

1. e4 {[%clk 00:45:15]} {[%emt 00:00:05]} e5 {[%clk 00:45:16]} {[%emt
00:00:05]} 2. Nf3 {[%clk 00:45:19]} {[%emt 00:00:06]} Nc6 {[%clk 00:45:23]}
{[%emt 00:00:02]} 3. Bb5 {[%clk 00:44:39]} {[%emt 00:00:50]} Nf6 {[%clk
00:45:25]} {[%emt 00:00:07]} 4. d3 {[%clk 00:43:13]} {[%emt 00:01:36]} Bc5
{[%clk 00:44:49]} {[%emt 00:00:46]} 5. O-O {[%clk 00:43:16]} {[%emt 00:00:08]}
d6 {[%clk 00:44:53]} {[%emt 00:00:06]} 6. c3 {[%clk 00:43:22]} {[%emt
00:00:05]} O-O {[%clk 00:43:39]} {[%emt 00:00:07]} 7. h3 {[%clk 00:43:09]}
{[%emt 00:01:39]} Ne7 {[%clk 00:43:24]} {[%emt 00:00:24]} 8. Bg5 {[%clk
00:29:45]} {[%emt 00:13:35]} Ng6 {[%clk 00:43:09]} {[%emt 00:00:25]} 9. Nh4
{[%clk 00:25:17]} {[%emt 00:04:38]} h6 {[%clk 00:39:45]} {[%emt 00:03:34]} 10.
Nxg6 {[%clk 00:25:20]} {[%emt 00:00:07]} fxg6 {[%clk 00:39:51]} {[%emt
00:00:03]} 11. Bc4+ {[%clk 00:25:08]} {[%emt 00:00:23]} Kh7 {[%clk 00:39:28]}
{[%emt 00:00:33]} 12. Be3 {[%clk 00:25:12]} {[%emt 00:00:07]} Bxe3 {[%clk
00:37:43]} {[%emt 00:01:54]} 13. fxe3 {[%clk 00:25:20]} {[%emt 00:00:02]} Qe7
{[%clk 00:37:51]} {[%emt 00:00:02]} 14. Nd2 {[%clk 00:25:19]} {[%emt 00:00:11]}
Bd7 {[%clk 00:37:58]} {[%emt 00:00:02]} 15. Nf3 {[%clk 00:23:26]} {[%emt
00:02:04]} g5 {[%clk 00:32:23]} {[%emt 00:05:45]} 16. Nh2 {[%clk 00:23:02]}
{[%emt 00:00:34]} c6 {[%clk 00:32:21]} {[%emt 00:00:12]} 17. Bb3 {[%clk
00:22:47]} {[%emt 00:00:25]} Rad8 {[%clk 00:31:54]} {[%emt 00:00:38]} 18. Qe2
{[%clk 00:22:43]} {[%emt 00:00:13]} Be8 {[%clk 00:30:33]} {[%emt 00:01:30]} 19.
Rf3 {[%clk 00:21:32]} {[%emt 00:01:22]} Bg6 {[%clk 00:28:35]} {[%emt 00:02:07]}
20. Raf1 {[%clk 00:20:44]} {[%emt 00:00:59]} d5 {[%clk 00:26:06]} {[%emt
00:02:40]} 21. exd5 {[%clk 00:20:39]} {[%emt 00:00:14]} e4 {[%clk 00:26:14]}
{[%emt 00:00:02]} 22. dxe4 {[%clk 00:20:06]} {[%emt 00:00:43]} Bxe4 {[%clk
00:22:03]} {[%emt 00:04:20]} 23. R3f2 {[%clk 00:18:58]} {[%emt 00:01:19]} Nxd5
{[%clk 00:18:46]} {[%emt 00:03:27]} 24. Nf3 {[%clk 00:16:42]} {[%emt 00:02:26]}
Rfe8 {[%clk 00:10:57]} {[%emt 00:08:00]} 25. Nd4 {[%clk 00:09:27]} {[%emt
00:07:24]} Bg6 {[%clk 00:10:58]} {[%emt 00:00:09]} 26. Re1 {[%clk 00:09:34]}
{[%emt 00:00:04]} Qxe3 {[%clk 00:10:26]} {[%emt 00:00:42]} 27. Bxd5 {[%clk
00:09:19]} {[%emt 00:00:25]} Qxe2 {[%clk 00:10:32]} {[%emt 00:00:04]} 28. Rfxe2
{[%clk 00:09:27]} {[%emt 00:00:02]} cxd5 {[%clk 00:10:10]} {[%emt 00:00:31]} 29.
Re7 {[%clk 00:08:52]} {[%emt 00:00:45]} Be4 {[%clk 00:08:53]} {[%emt 00:01:27]}
30. Rxb7 {[%clk 00:08:56]} {[%emt 00:00:06]} Rb8 {[%clk 00:09:01]} {[%emt
00:00:01]} 31. Rxb8 {[%clk 00:08:59]} {[%emt 00:00:08]} Rxb8 {[%clk 00:09:08]}
{[%emt 00:00:02]} 32. Re2 {[%clk 00:08:58]} {[%emt 00:00:11]} Rb7 {[%clk
00:09:13]} {[%emt 00:00:04]} 33. Rd2 {[%clk 00:08:45]} {[%emt 00:00:25]} Kg6
{[%clk 00:08:05]} {[%emt 00:01:18]} 34. Nc6 {[%clk 00:08:53]} {[%emt 00:00:02]}
h5 {[%clk 00:07:30]} {[%emt 00:00:44]} 35. Kf2 {[%clk 00:08:45]} {[%emt
00:00:19]} Rf7+ {[%clk 00:07:32]} {[%emt 00:00:08]} 36. Ke3 {[%clk 00:08:30]}
{[%emt 00:00:25]} Rc7 {[%clk 00:07:23]} {[%emt 00:00:19]} 37. Nb4 {[%clk
00:08:10]} {[%emt 00:00:31]} Rd7 {[%clk 00:07:09]} {[%emt 00:00:22]} 38. Kd4
{[%clk 00:05:58]} {[%emt 00:02:23]} Kf6 {[%clk 00:07:16]} {[%emt 00:00:03]} 39.
Rf2+ {[%clk 00:05:58]} {[%emt 00:00:10]} Ke6 {[%clk 00:07:19]} {[%emt
00:00:05]} 40. Na6 {[%clk 00:05:46]} {[%emt 00:00:24]} Kd6 {[%clk 00:07:10]}
{[%emt 00:00:17]} 41. Nc5 {[%clk 00:05:54]} {[%emt 00:00:05]} Re7 {[%clk
00:07:18]} {[%emt 00:00:01]} 42. Re2 {[%clk 00:05:36]} {[%emt 00:00:28]} Bb1
{[%clk 00:06:55]} {[%emt 00:00:33]} 43. Rxe7 {[%clk 00:05:26]} {[%emt
00:00:20]} Kxe7 {[%clk 00:07:03]} {[%emt 00:00:02]} 44. Kxd5 {[%clk 00:04:45]}
{[%emt 00:00:52]} Kf6 {[%clk 00:06:16]} {[%emt 00:00:56]} 45. Ne4+ {[%clk
00:04:03]} {[%emt 00:00:52]} Kf5 {[%clk 00:05:50]} {[%emt 00:00:36]} 46. Ng3
{[%clk 00:04:11]} {[%emt 00:00:02]} Kg6 {[%clk 00:05:42]} {[%emt 00:00:18]} 47.
Ke5 {[%clk 00:02:39]} {[%emt 00:01:42]} h4 {[%clk 00:05:45]} {[%emt 00:00:07]}
48. Nf1 {[%clk 00:02:38]} {[%emt 00:00:11]} Bxa2 {[%clk 00:05:32]} {[%emt
00:00:23]} 49. Ne3 {[%clk 00:02:47]} {[%emt 00:00:02]} a5 {[%clk 00:05:35]}
{[%emt 00:00:07]} 50. c4 {[%clk 00:02:55]} {[%emt 00:00:02]} Bb3 {[%clk
00:05:35]} {[%emt 00:00:09]} 51. c5 {[%clk 00:03:03]} {[%emt 00:00:02]} Ba4
{[%clk 00:05:33]} {[%emt 00:00:12]} 52. Kd6 {[%clk 00:02:17]} {[%emt 00:00:57]}
Kf6 {[%clk 00:05:27]} {[%emt 00:00:15]} 53. c6 {[%clk 00:02:10]} {[%emt
00:00:17]} Bxc6 {[%clk 00:05:35]} {[%emt 00:00:01]} 54. Kxc6 {[%clk 00:02:17]}
{[%emt 00:00:04]} Ke5 {[%clk 00:05:43]} {[%emt 00:00:01]} 55. Kb5 {[%clk
00:02:05]} {[%emt 00:00:23]} Kf4 {[%clk 00:05:51]} {[%emt 00:00:03]} 56. Nf1
{[%clk 00:01:55]} {[%emt 00:00:20]} g4 {[%clk 00:04:51]} {[%emt 00:01:09]} 57.
hxg4 {[%clk 00:02:03]} {[%emt 00:00:02]} Kxg4 {[%clk 00:05:00]} {[%emt
00:00:02]} 58. Kxa5 {[%clk 00:02:11]} {[%emt 00:00:02]} g5 {[%clk 00:05:08]}
{[%emt 00:00:02]} 59. b4 {[%clk 00:02:20]} h3 {[%clk 00:05:11]} {[%emt
00:00:06]} 60. gxh3+ {[%clk 00:02:29]} {[%emt 00:00:02]} Kxh3 {[%clk 00:05:19]}
61. b5 {[%clk 00:02:11]} {[%emt 00:00:28]} 1-0

[Event "FIDE U16 Olympiad_boards_1-80"]
[Site "Eindhoven, Netherlands"]
[Date "2023.08.13"]
[Round "1.64"]
[White "Nabirye, Caroline"]
[Black "Tejaswini, G"]
[Result "0-1"]
[TimeControl "2700+10"]
[WhiteElo "1287"]
[BlackElo "1733"]

1. e4 {[%clk 00:45:17]} {[%emt 00:00:02]} c5 {[%clk 00:45:18]} {[%emt
00:00:03]} 2. Bc4 {[%clk 00:45:24]} {[%emt 00:00:03]} Nc6 {[%clk 00:45:22]}
{[%emt 00:00:05]} 3. Nc3 {[%clk 00:45:31]} {[%emt 00:00:04]} e6 {[%clk
00:45:17]} {[%emt 00:00:15]} 4. Nf3 {[%clk 00:45:35]} {[%emt 00:00:05]} Be7
{[%clk 00:45:08]} {[%emt 00:00:19]} 5. d3 {[%clk 00:45:32]} {[%emt 00:00:13]}
d6 {[%clk 00:44:52]} {[%emt 00:00:26]} 6. a3 {[%clk 00:45:29]} {[%emt
00:00:13]} Nf6 {[%clk 00:44:57]} {[%emt 00:00:05]} 7. h3 {[%clk 00:45:36]}
{[%emt 00:00:03]} h6 {[%clk 00:44:59]} {[%emt 00:00:09]} 8. Bd2 {[%clk
00:45:31]} {[%emt 00:00:14]} O-O {[%clk 00:44:55]} {[%emt 00:00:15]} 9. O-O
{[%clk 00:45:36]} {[%emt 00:00:04]} a6 {[%clk 00:44:54]} {[%emt 00:00:11]} 10.
Nh2 {[%clk 00:45:32]} {[%emt 00:00:13]} d5 {[%clk 00:42:19]} {[%emt 00:02:47]}
11. Ba2 {[%clk 00:44:42]} {[%emt 00:00:59]} b5 {[%clk 00:40:34]} {[%emt
00:01:56]} 12. Qf3 {[%clk 00:41:22]} {[%emt 00:03:29]} b4 {[%clk 00:38:17]}
{[%emt 00:02:27]} 13. axb4 {[%clk 00:41:04]} {[%emt 00:00:29]} cxb4 {[%clk
00:38:26]} {[%emt 00:00:01]} 14. Ne2 {[%clk 00:37:16]} {[%emt 00:03:57]} dxe4
{[%clk 00:38:25]} {[%emt 00:00:11]} 15. Qg3 {[%clk 00:35:25]} {[%emt 00:02:02]}
Bd6 {[%clk 00:38:06]} {[%emt 00:00:28]} 16. Bf4 {[%clk 00:31:05]} {[%emt
00:04:30]} Nh5 {[%clk 00:37:22]} {[%emt 00:00:54]} 17. Qe3 {[%clk 00:30:49]}
{[%emt 00:00:27]} Nxf4 {[%clk 00:36:50]} {[%emt 00:00:42]} 18. Nxf4 {[%clk
00:30:53]} {[%emt 00:00:06]} Qc7 {[%clk 00:36:10]} {[%emt 00:00:49]} 19. g3
{[%clk 00:28:29]} {[%emt 00:02:34]} Bxf4 {[%clk 00:34:42]} {[%emt 00:01:38]} 20.
Qxf4 {[%clk 00:28:20]} {[%emt 00:00:19]} Qxf4 {[%clk 00:34:03]} {[%emt
00:00:50]} 21. gxf4 {[%clk 00:28:26]} {[%emt 00:00:03]} exd3 {[%clk 00:34:10]}
{[%emt 00:00:03]} 22. cxd3 {[%clk 00:28:32]} {[%emt 00:00:03]} Nd4 {[%clk
00:34:18]} {[%emt 00:00:03]} 23. Kg2 {[%clk 00:25:57]} {[%emt 00:02:45]} Bb7+
{[%clk 00:34:09]} {[%emt 00:00:20]} 24. f3 {[%clk 00:19:34]} {[%emt 00:06:33]}
Nc2 {[%clk 00:34:11]} {[%emt 00:00:08]} 25. Rac1 {[%clk 00:16:10]} {[%emt
00:03:33]} Ne3+ {[%clk 00:34:18]} {[%emt 00:00:03]} 26. Kf2 {[%clk 00:16:15]}
{[%emt 00:00:04]} Nxf1 {[%clk 00:34:25]} {[%emt 00:00:04]} 27. Nxf1 {[%emt
00:00:13]} Rac8 {[%clk 00:34:25]} 28. Rb1 {[%clk 00:16:17]} {[%emt 00:00:14]}
Rc2+ {[%clk 00:34:25]} {[%emt 00:00:10]} 29. Kg3 {[%clk 00:15:39]} {[%emt
00:00:47]} Re2 {[%clk 00:33:40]} {[%emt 00:00:55]} 30. Bc4 {[%clk 00:14:53]}
{[%emt 00:00:56]} Rc8 {[%clk 00:33:19]} {[%emt 00:00:31]} 31. b3 {[%clk
00:14:44]} {[%emt 00:00:20]} Bd5 {[%clk 00:32:43]} {[%emt 00:00:47]} 32. Ra1
{[%clk 00:14:02]} {[%emt 00:00:51]} Bxc4 {[%clk 00:32:14]} {[%emt 00:00:39]} 33.
bxc4 {[%clk 00:13:58]} {[%emt 00:00:14]} b3 {[%clk 00:31:59]} {[%emt 00:00:25]}
34. Rb1 {[%clk 00:11:57]} {[%emt 00:02:11]} b2 {[%clk 00:32:03]} {[%emt
00:00:06]} 35. f5 {[%clk 00:10:00]} {[%emt 00:02:07]} exf5 {[%clk 00:32:01]}
{[%emt 00:00:12]} 36. f4 {[%clk 00:10:03]} {[%emt 00:00:07]} a5 {[%clk
00:31:09]} {[%emt 00:01:03]} 37. Kf3 {[%clk 00:09:51]} {[%emt 00:00:22]} Rce8
{[%clk 00:31:16]} {[%emt 00:00:02]} 38. c5 {[%clk 00:08:30]} {[%emt 00:01:30]}
a4 {[%clk 00:31:24]} {[%emt 00:00:03]} 39. c6 {[%clk 00:07:34]} {[%emt
00:01:06]} a3 {[%clk 00:31:31]} {[%emt 00:00:03]} 40. c7 {[%clk 00:04:11]}
{[%emt 00:03:34]} a2 {[%clk 00:31:34]} {[%emt 00:00:06]} 41. c8=Q {[%clk
00:02:43]} {[%emt 00:01:38]} Rxc8 {[%clk 00:31:41]} {[%emt 00:00:03]} 42. Kxe2
{[%clk 00:02:50]} {[%emt 00:00:03]} axb1=Q {[%clk 00:31:46]} {[%emt 00:00:06]}
43. Nd2 {[%clk 00:02:37]} {[%emt 00:00:22]} Re8+ {[%clk 00:31:51]} {[%emt
00:00:05]} 44. Kf3 {[%clk 00:02:23]} {[%emt 00:00:24]} Qxd3+ {[%clk 00:31:53]}
{[%emt 00:00:08]} 45. Kf2 {[%clk 00:00:36]} {[%emt 00:01:58]} Re2+ {[%clk
00:31:59]} {[%emt 00:00:04]} 46. Kf1 {[%clk 00:00:28]} {[%emt 00:00:17]} Qxd2
{[%clk 00:31:59]} {[%emt 00:00:10]} 47. h4 {[%clk 00:00:34]} {[%emt 00:00:04]}
Qd1# {[%clk 00:32:07]} {[%emt 00:00:03]} 0-1

[Event "FIDE U16 Olympiad_boards_1-80"]
[Site "Eindhoven, Netherlands"]
[Date "2023.08.13"]
[Round "1.65"]
[White "Tandeka, Shiloh"]
[Black "Asllani, Dorian"]
[Result "0-1"]
[TimeControl "2700+10"]
[WhiteElo "1433"]
[BlackElo "2109"]

1. e4 {[%clk 00:45:09]} {[%emt 00:00:10]} c5 {[%clk 00:45:18]} {[%emt
00:00:02]} 2. Nc3 {[%clk 00:45:17]} {[%emt 00:00:03]} Nc6 {[%clk 00:45:25]}
{[%emt 00:00:02]} 3. f4 {[%clk 00:45:24]} {[%emt 00:00:02]} g6 {[%clk
00:45:32]} {[%emt 00:00:04]} 4. Nf3 {[%clk 00:45:31]} {[%emt 00:00:02]} Bg7
{[%clk 00:45:39]} {[%emt 00:00:03]} 5. Bb5 {[%clk 00:45:39]} {[%emt 00:00:03]}
Nd4 {[%clk 00:45:30]} {[%emt 00:00:19]} 6. O-O {[%clk 00:41:26]} {[%emt
00:04:23]} Nxb5 {[%clk 00:42:42]} {[%emt 00:02:58]} 7. Nxb5 {[%clk 00:41:33]}
{[%emt 00:00:03]} Nf6 {[%clk 00:42:48]} {[%emt 00:00:04]} 8. Qe1 {[%clk
00:37:14]} {[%emt 00:04:29]} O-O {[%clk 00:41:25]} {[%emt 00:01:33]} 9. d3
{[%clk 00:35:54]} {[%emt 00:01:30]} d5 {[%clk 00:36:14]} {[%emt 00:05:21]} 10.
e5 {[%clk 00:35:56]} {[%emt 00:00:08]} Ne8 {[%clk 00:36:10]} {[%emt 00:00:13]}
11. Nc3 {[%clk 00:34:28]} {[%emt 00:01:39]} Nc7 {[%clk 00:34:57]} {[%emt
00:01:23]} 12. Qh4 {[%clk 00:32:19]} {[%emt 00:02:17]} f6 {[%clk 00:33:54]}
{[%emt 00:01:14]} 13. exf6 {[%clk 00:31:03]} {[%emt 00:01:27]} exf6 {[%clk
00:33:19]} {[%emt 00:00:45]} 14. Bd2 {[%clk 00:26:39]} {[%emt 00:04:34]} b5
{[%clk 00:30:21]} {[%emt 00:03:08]} 15. d4 {[%clk 00:25:09]} {[%emt 00:01:40]}
c4 {[%clk 00:23:45]} {[%emt 00:06:46]} 16. Rae1 {[%clk 00:15:35]} {[%emt
00:09:44]} Bf5 {[%clk 00:22:50]} {[%emt 00:01:04]} 17. Rc1 {[%clk 00:14:14]}
{[%emt 00:01:31]} Qd7 {[%clk 00:21:50]} {[%emt 00:01:10]} 18. Nd1 {[%clk
00:13:09]} {[%emt 00:01:15]} a5 {[%clk 00:19:43]} {[%emt 00:02:17]} 19. Ne3
{[%clk 00:12:53]} {[%emt 00:00:26]} Be4 {[%clk 00:19:45]} {[%emt 00:00:09]} 20.
Be1 {[%clk 00:10:24]} {[%emt 00:02:38]} Ra6 {[%clk 00:11:02]} {[%emt 00:08:54]}
21. Nd2 {[%clk 00:10:21]} {[%emt 00:00:13]} f5 {[%clk 00:09:36]} {[%emt
00:01:36]} 22. Nxe4 {[%clk 00:10:06]} {[%emt 00:00:25]} Bxd4 {[%clk 00:08:52]}
{[%emt 00:00:54]} 23. Rf3 {[%clk 00:06:45]} {[%emt 00:03:31]} fxe4 {[%clk
00:07:42]} {[%emt 00:01:20]} 24. Rh3 {[%clk 00:06:29]} {[%emt 00:00:26]} Raf6
{[%clk 00:07:28]} {[%emt 00:00:24]} 25. Kh1 {[%clk 00:03:59]} {[%emt 00:02:39]}
Rxf4 {[%clk 00:07:25]} {[%emt 00:00:14]} 26. Qxf4 {[%clk 00:02:06]} {[%emt
00:02:02]} Rxf4 {[%clk 00:07:29]} {[%emt 00:00:06]} 27. Bxa5 {[%clk 00:01:59]}
{[%emt 00:00:17]} Ne6 {[%clk 00:07:19]} {[%emt 00:00:20]} 28. c3 {[%clk
00:01:42]} {[%emt 00:00:28]} Bxe3 {[%clk 00:07:25]} {[%emt 00:00:04]} 29. Rxe3
{[%clk 00:01:49]} {[%emt 00:00:04]} Qa7 {[%clk 00:07:32]} {[%emt 00:00:02]} 30.
Bb6 {[%clk 00:01:20]} {[%emt 00:00:38]} Qxb6 {[%clk 00:07:38]} {[%emt
00:00:04]} 31. Re2 {[%clk 00:01:21]} {[%emt 00:00:10]} Nc5 {[%clk 00:07:38]}
{[%emt 00:00:10]} 32. g3 {[%clk 00:01:24]} {[%emt 00:00:06]} Rf3 {[%clk
00:07:46]} {[%emt 00:00:02]} 33. Rd1 {[%clk 00:01:28]} {[%emt 00:00:06]} Nd3
{[%clk 00:07:53]} {[%emt 00:00:04]} 34. Rdd2 {[%clk 00:01:32]} {[%emt
00:00:05]} Rf1+ {[%clk 00:07:55]} {[%emt 00:00:09]} 35. Kg2 {[%clk 00:01:40]}
{[%emt 00:00:01]} Rg1+ {[%clk 00:08:02]} {[%emt 00:00:04]} 36. Kh3 {[%clk
00:01:46]} {[%emt 00:00:03]} Nf4+ {[%clk 00:08:06]} {[%emt 00:00:06]} 37. gxf4
{[%clk 00:00:53]} {[%emt 00:01:04]} Qe6+ {[%clk 00:08:14]} {[%emt 00:00:03]} 38.
f5 {[%clk 00:01:01]} Qxf5+ {[%clk 00:08:21]} {[%emt 00:00:02]} 39. Kh4 {[%clk
00:00:48]} {[%emt 00:00:08]} Qg4# {[%clk 00:08:21]} 0-1

[Event "FIDE U16 Olympiad_boards_1-80"]
[Site "Eindhoven, Netherlands"]
[Date "2023.08.13"]
[Round "1.66"]
[White "Mattenberger, Matthias"]
[Black "Kigundu, Ethan"]
[Result "1-0"]
[TimeControl "2700+10"]
[WhiteElo "2276"]
[BlackElo "1620"]

1. d4 {[%clk 00:45:14]} {[%emt 00:00:05]} d5 {[%clk 00:45:17]} {[%emt
00:00:03]} 2. c4 {[%clk 00:45:22]} {[%emt 00:00:02]} e6 {[%clk 00:45:25]}
{[%emt 00:00:02]} 3. Nc3 {[%clk 00:45:31]} {[%emt 00:00:01]} Nf6 {[%clk
00:45:34]} {[%emt 00:00:02]} 4. cxd5 {[%clk 00:45:39]} {[%emt 00:00:02]} exd5
{[%clk 00:45:41]} {[%emt 00:00:02]} 5. Bg5 {[%clk 00:45:47]} {[%emt 00:00:01]}
c6 {[%clk 00:45:50]} {[%emt 00:00:02]} 6. e3 {[%clk 00:45:56]} {[%emt
00:00:02]} Be7 {[%clk 00:45:56]} {[%emt 00:00:04]} 7. Bd3 {[%clk 00:46:04]}
{[%emt 00:00:02]} h6 {[%clk 00:46:02]} {[%emt 00:00:04]} 8. Bh4 {[%clk
00:46:10]} {[%emt 00:00:03]} O-O {[%clk 00:46:07]} {[%emt 00:00:04]} 9. Nge2
{[%clk 00:46:17]} {[%emt 00:00:04]} Re8 {[%clk 00:42:58]} {[%emt 00:03:19]} 10.
Qc2 {[%clk 00:46:06]} {[%emt 00:00:20]} Nbd7 {[%clk 00:40:44]} {[%emt
00:02:25]} 11. O-O {[%clk 00:45:57]} {[%emt 00:00:18]} b6 {[%clk 00:38:54]}
{[%emt 00:02:01]} 12. a4 {[%clk 00:40:08]} {[%emt 00:05:59]} a5 {[%clk
00:32:45]} {[%emt 00:06:20]} 13. Rac1 {[%clk 00:36:39]} {[%emt 00:03:38]} Bb7
{[%clk 00:30:04]} {[%emt 00:02:51]} 14. Rfd1 {[%clk 00:33:47]} {[%emt
00:03:03]} Nf8 {[%clk 00:25:26]} {[%emt 00:04:47]} 15. h3 {[%clk 00:30:40]}
{[%emt 00:03:17]} Ne4 {[%clk 00:23:27]} {[%emt 00:02:09]} 16. Bxe7 {[%clk
00:29:56]} {[%emt 00:00:54]} Qxe7 {[%clk 00:23:32]} {[%emt 00:00:05]} 17. Bxe4
{[%clk 00:29:36]} {[%emt 00:00:30]} dxe4 {[%clk 00:23:38]} {[%emt 00:00:04]} 18.
Ng3 {[%clk 00:29:33]} {[%emt 00:00:14]} c5 {[%clk 00:21:57]} {[%emt 00:01:50]}
19. d5 {[%clk 00:27:27]} {[%emt 00:02:16]} Rad8 {[%clk 00:16:33]} {[%emt
00:05:33]} 20. Qxe4 {[%clk 00:26:29]} {[%emt 00:01:09]} Qxe4 {[%clk 00:14:37]}
{[%emt 00:02:06]} 21. Ngxe4 {[%clk 00:26:35]} {[%emt 00:00:04]} Ng6 {[%clk
00:11:28]} {[%emt 00:03:19]} 22. Ng3 {[%clk 00:25:08]} {[%emt 00:01:37]} Re5
{[%clk 00:09:24]} {[%emt 00:02:15]} 23. e4 {[%clk 00:16:32]} {[%emt 00:08:46]}
Nf4 {[%clk 00:07:50]} {[%emt 00:01:43]} 24. Rd2 {[%clk 00:13:24]} {[%emt
00:03:18]} h5 {[%clk 00:06:35]} {[%emt 00:01:25]} 25. Nge2 {[%clk 00:11:52]}
{[%emt 00:01:42]} Nxe2+ {[%clk 00:06:32]} {[%emt 00:00:14]} 26. Rxe2 {[%clk
00:11:59]} {[%emt 00:00:02]} f5 {[%clk 00:04:57]} {[%emt 00:01:44]} 27. f3
{[%clk 00:10:39]} {[%emt 00:01:31]} Rd7 {[%clk 00:03:44]} {[%emt 00:01:23]} 28.
Rd2 {[%clk 00:08:45]} {[%emt 00:02:04]} fxe4 {[%clk 00:03:38]} {[%emt
00:00:16]} 29. fxe4 {[%clk 00:08:53]} {[%emt 00:00:02]} Rd8 {[%clk 00:03:16]}
{[%emt 00:00:32]} 30. Rf1 {[%clk 00:08:21]} {[%emt 00:00:41]} Rg5 {[%emt
00:02:01]} 31. Rf4 {[%clk 00:08:00]} Bc8 {[%clk 00:01:57]} {[%emt 00:00:09]} 32.
Kh2 {[%clk 00:07:38]} {[%emt 00:00:32]} Re5 {[%clk 00:01:21]} {[%emt 00:00:46]}
33. Rdf2 {[%clk 00:07:31]} {[%emt 00:00:18]} Re7 {[%clk 00:01:08]} {[%emt
00:00:23]} 34. R2f3 {[%clk 00:06:43]} {[%emt 00:00:59]} g5 {[%clk 00:00:55]}
{[%emt 00:00:22]} 35. Rf6 {[%clk 00:06:37]} {[%emt 00:00:15]} g4 {[%clk
00:01:02]} {[%emt 00:00:04]} 36. R3f4 {[%clk 00:06:37]} {[%emt 00:00:10]} gxh3
{[%clk 00:00:39]} {[%emt 00:00:33]} 37. gxh3 {[%clk 00:06:45]} {[%emt
00:00:02]} Rg7 {[%clk 00:00:29]} {[%emt 00:00:20]} 38. Rxb6 {[%clk 00:06:31]}
{[%emt 00:00:24]} Kh7 {[%clk 00:00:35]} {[%emt 00:00:04]} 39. Rbf6 {[%clk
00:06:28]} {[%emt 00:00:13]} Rdg8 {[%clk 00:00:24]} {[%emt 00:00:21]} 40. Rf7
{[%clk 00:06:26]} {[%emt 00:00:12]} Kg6 {[%clk 00:00:25]} {[%emt 00:00:09]} 41.
Rxg7+ {[%clk 00:05:55]} {[%emt 00:00:41]} Rxg7 {[%clk 00:00:33]} {[%emt
00:00:03]} 42. e5 {[%clk 00:05:49]} {[%emt 00:00:16]} Rb7 {[%clk 00:00:38]}
{[%emt 00:00:04]} 43. Rf6+ {[%clk 00:05:42]} {[%emt 00:00:18]} Kg7 {[%clk
00:00:46]} {[%emt 00:00:01]} 44. Rf2 {[%clk 00:05:51]} {[%emt 00:00:01]} Re7
{[%clk 00:00:43]} {[%emt 00:00:13]} 45. e6 {[%clk 00:05:57]} {[%emt 00:00:03]}
Bb7 {[%clk 00:00:25]} {[%emt 00:00:29]} 46. Kg3 {[%clk 00:05:51]} {[%emt
00:00:17]} Kg6 {[%clk 00:00:25]} {[%emt 00:00:09]} 47. Kf4 {[%clk 00:05:49]}
{[%emt 00:00:12]} Bxd5 {[%clk 00:00:24]} {[%emt 00:00:10]} 48. Nxd5 {[%clk
00:05:48]} {[%emt 00:00:11]} Rxe6 {[%clk 00:00:32]} {[%emt 00:00:02]} 49. Rc2
{[%clk 00:05:21]} {[%emt 00:00:38]} Re1 {[%clk 00:00:14]} {[%emt 00:00:28]} 50.
Rxc5 {[%clk 00:05:23]} {[%emt 00:00:08]} Rf1+ {[%clk 00:00:16]} {[%emt
00:00:08]} 51. Kg3 {[%clk 00:05:13]} {[%emt 00:00:20]} Rg1+ {[%clk 00:00:23]}
{[%emt 00:00:03]} 52. Kf2 {[%clk 00:05:12]} {[%emt 00:00:11]} Rb1 {[%clk
00:00:24]} {[%emt 00:00:09]} 53. Rb5 {[%clk 00:05:20]} {[%emt 00:00:02]} h4
{[%clk 00:00:20]} {[%emt 00:00:15]} 54. Nf4+ {[%clk 00:05:06]} {[%emt
00:00:24]} Kf6 {[%clk 00:00:23]} {[%emt 00:00:06]} 55. Ng2 {[%clk 00:05:11]}
{[%emt 00:00:05]} Rh1 {[%clk 00:00:27]} {[%emt 00:00:06]} 56. Rxa5 {[%clk
00:04:18]} {[%emt 00:01:03]} Rxh3 {[%clk 00:00:32]} {[%emt 00:00:04]} 57. Rb5
{[%clk 00:04:24]} {[%emt 00:00:04]} Rh1 {[%clk 00:00:36]} {[%emt 00:00:07]} 58.
Ne3 {[%clk 00:04:02]} {[%emt 00:00:32]} h3 {[%clk 00:00:29]} {[%emt 00:00:17]}
59. Nf1 {[%clk 00:04:10]} 1-0